lending/lending_fUSD_20240219
["ID","MTS","AMOUNT","RATE_DAILY","PERIOD"]
[314479844,1708375885385,-701.86,0.00046849,30]
[314479845,1708375885394,-500.0,0.00046849,30]
[314479846,1708375885404,-821.67,0.00046849,30]
[314479847,1708375885414,-500.0,0.00046849,30]
[314479848,1708375885423,-500.0,0.00046849,30]
[314479849,1708375885433,-546.51,0.00046849,30]
[314479850,1708375885443,-532.345483,0.00046849,14]
[314479851,1708375885452,-532.345483,0.00046849,14]
[314479852,1708375885461,-791.29,0.00046849,30]
[314479853,1708375885470,-500.0,0.00046849,30]
[314479854,1708375885479,-555.68,0.00046849,30]
[314479855,1708375885489,-532.345483,0.00046849,14]
[314479856,1708375885498,-500.0,0.00046849,30]
[314479857,1708375885508,-532.345483,0.00046849,14]
[314479858,1708375885520,-500.0,0.00046849,30]
[314479859,1708375885529,-529.32347186,0.00046849,30]
[314479860,1708375885539,-1231.27,0.00046849,30]
[314479861,1708375885549,-500.0,0.00046849,30]
[314479862,1708375885559,-500.0,0.00046849,30]
[314479863,1708375885568,-500.0,0.00046849,30]
[314479864,1708375885578,-500.0,0.00046849,30]
[314479865,1708375885587,-500.0,0.00046849,30]
[314479866,1708375885597,-1096.08,0.00046849,30]
[314479867,1708375885606,-517.1,0.00046849,30]
[314479868,1708375885616,-817.72,0.00046849,30]
[314479869,1708375885626,-500.0,0.00046849,30]
[314479870,1708375885635,-278.12730954,0.00046849,30]
[314479871,1708375885644,-633.3,0.00046849,30]
[314479872,1708375885653,-882.89,0.00046849,30]
[314479873,1708375885663,-500.0,0.00046849,30]
[314479874,1708375885672,-500.0,0.00046849,30]
[314479875,1708375885681,-500.0,0.00046849,30]
[314479876,1708375885691,-663.403489,0.00046849,14]
[314479877,1708375885700,-500.0,0.00046849,30]
[314479878,1708375885709,-663.403489,0.00046849,14]
[314479879,1708375885718,-500.0,0.00046849,30]
[314479880,1708375885727,-500.0,0.00046849,30]
[314479881,1708375885736,-663.403489,0.00046849,14]
[314479882,1708375885745,-663.403489,0.00046849,14]
[314479883,1708375885753,-1075.43,0.00046849,30]
[314479884,1708375885765,-500.0,0.00046849,30]
[314479885,1708375885774,-1081.85,0.00046849,30]
[314479886,1708375885782,-500.0,0.00046849,30]
[314479887,1708375885791,-500.0,0.00046849,30]
[314479888,1708375885800,-500.0,0.00046849,30]
[314479889,1708375885809,-569.42,0.00046849,30]
[314479890,1708375885817,-1092.13,0.00046849,30]
[314479891,1708375885826,-500.0,0.00046849,30]
[314479892,1708375885835,-500.0,0.00046849,30]
[314479893,1708375885844,-537.66,0.00046849,30]
[314479894,1708375885853,-500.0,0.00046849,30]
[314479895,1708375885862,-226.430571,0.00046849,14]
[314479896,1708375885871,-226.430571,0.00046849,14]
[314479897,1708375885880,-300.02573094,0.00046849,30]
[314479898,1708375885888,-500.0,0.00046849,30]
[314479899,1708375885897,-500.0,0.00046849,30]
[314479900,1708375885906,-500.0,0.00046849,30]
[314479901,1708375885915,-500.0,0.00046849,30]
[314479902,1708375885924,-226.430571,0.00046849,14]
[314479903,1708375885933,-226.430571,0.00046849,14]
[314479904,1708375885941,-500.0,0.00046849,30]
[314479905,1708375885950,-686.43,0.00046849,30]
[314479906,1708375885959,-455.25314202,0.00046849,30]
[314479907,1708375885967,-988.65,0.00046849,30]
[314479908,1708375885976,-500.0,0.00046849,30]
[314479909,1708375885985,-519.4855834,0.00046849,30]
[314479910,1708375885994,-500.0,0.00046849,30]
[314479911,1708375886002,-1169.05,0.00046849,30]
[314479912,1708375886012,-500.0,0.00046849,30]
[314479913,1708375886021,-500.0,0.00046849,30]
[314479914,1708375886031,-500.0,0.00046849,30]
[314479915,1708375886040,-500.0,0.00046849,30]
[314479916,1708375886049,-500.0,0.00046849,30]
[314479917,1708375886058,-500.0,0.00046849,30]
[314479918,1708375886067,-1548.35,0.00046849,30]
[314479919,1708375886081,-696.77,0.00046849,30]
[314479920,1708375886091,-500.0,0.00046849,30]
[314479921,1708375886101,-823.36,0.00046849,30]
[314479922,1708375886110,-500.0,0.00046849,30]
[314479923,1708375886121,-500.0,0.00046849,30]
[314479924,1708375886130,-500.0,0.00046849,30]
[314479925,1708375886140,-879.35,0.00046849,30]
[314479926,1708375886150,-500.0,0.00046849,30]
[314479927,1708375886159,-971.92,0.00046849,30]
[314479928,1708375886169,-500.0,0.00046849,30]
[314479929,1708375886178,-1247.38,0.00046849,30]
[314479930,1708375886187,-500.0,0.00046849,30]
[314479931,1708375886197,-609.0175278,0.00046849,30]
[314479932,1708375886206,-500.0,0.00046849,30]
[314479933,1708375886215,-500.0,0.00046849,30]
[314479934,1708375886224,-1398.42,0.00046849,30]
[314479935,1708375886233,-500.0,0.00046849,30]
[314479936,1708375886242,-701.34,0.00046849,30]
[314479937,1708375886251,-500.0,0.00046849,30]
[314479938,1708375886260,-500.0,0.00046849,30]
[314479939,1708375886270,-500.0,0.00046849,30]
[314479940,1708375886280,-500.0,0.00046849,30]
[314479941,1708375886288,-500.0,0.00046849,30]
[314479942,1708375886298,-500.0,0.00046849,30]
[314479943,1708375886307,-500.0,0.00046849,30]
[314479944,1708375886316,-532.87073495,0.00046849,30]
[314479945,1708375886324,-926.08,0.00046849,30]
[314479946,1708375886334,-500.0,0.00046849,30]
[314479947,1708375886344,-500.0,0.00046849,30]
[314479948,1708375886353,-500.0,0.00046849,30]
[314479949,1708375886363,-500.0,0.00046849,30]
[314479950,1708375886374,-500.0,0.00046849,30]
[314479951,1708375886384,-1439.25,0.00046849,30]
[314479952,1708375886394,-500.0,0.00046849,30]
[314479953,1708375886403,-500.0,0.00046849,30]
[314479954,1708375886413,-730.11,0.00046849,30]
[314479955,1708375886422,-500.0,0.00046849,30]
[314479956,1708375886431,-642.65,0.00046849,30]
[314479957,1708375886441,-1058.32,0.00046849,30]
[314479958,1708375886450,-500.0,0.00046849,30]
[314479959,1708375886460,-500.0,0.00046849,30]
[314479960,1708375886470,-909.21,0.00046849,30]
[314479961,1708375886479,-960.6,0.00046849,30]
[314479962,1708375886489,-500.0,0.00046849,30]
[314479963,1708375886498,-529.3,0.00046849,30]
[314479964,1708375886507,-500.0,0.00046849,30]
[314479965,1708375886517,-500.0,0.00046849,30]
[314479966,1708375886527,-500.0,0.00046849,30]
[314479967,1708375886536,-500.0,0.00046849,30]
[314479968,1708375886546,-500.0,0.00046849,30]
[314479969,1708375886555,-747.42,0.00046849,30]
[314479970,1708375886565,-830.98,0.00046849,30]
[314479971,1708375886574,-500.0,0.00046849,30]
[314479972,1708375886584,-1206.67,0.00046849,30]
[314479973,1708375886594,-500.0,0.00046849,30]
[314479974,1708375886603,-500.0,0.00046849,30]
[314479975,1708375886612,-500.0,0.00046849,2]
[314479976,1708375886622,-500.0,0.00046849,30]
[314479977,1708375886632,-500.0,0.00046849,30]
[314479978,1708375886641,-1598.54,0.00046849,30]
[314479979,1708375886650,-462.929145,0.00046849,14]
[314479980,1708375886659,-500.0,0.00046849,30]
[314479981,1708375886866,-642.68,0.00046849,30]
[314479982,1708375886876,-462.929145,0.00046849,14]
[314479983,1708375886885,-500.0,0.00046849,30]
[314479984,1708375886895,-500.0,0.00046849,30]
[314479985,1708375886905,-500.0,0.00046849,30]
[314479986,1708375886915,-500.0,0.00046849,30]
[314479987,1708375886924,-542.13,0.00046849,30]
[314479988,1708375886934,-158.115941,0.00046849,14]
[314479989,1708375886943,-462.929145,0.00046849,14]
[314479990,1708375886953,-158.115941,0.00046849,14]
[314479991,1708375886963,-751.64,0.00046849,30]
[314479992,1708375886972,-462.929145,0.00046849,14]
[314479993,1708375886982,-921.92,0.00046849,30]
[314479994,1708375886991,-905.09,0.00046849,30]
[314479995,1708375887001,-500.0,0.00046849,30]
[314479996,1708375887010,-158.115941,0.00046849,14]
[314479997,1708375887021,-158.115941,0.00046849,14]
[314479998,1708375887031,-752.52,0.00046849,30]
[314479999,1708375887040,-500.0,0.00046849,30]
[314480000,1708375887049,-500.0,0.00046849,30]
[314480001,1708375887059,-500.0,0.00046849,30]
[314480002,1708375887069,-500.0,0.00046849,30]
[314480003,1708375887078,-341.071312,0.00046849,14]
[314480004,1708375887089,-500.0,0.00046849,30]
[314480005,1708375887099,-341.071312,0.00046849,14]
[314480006,1708375887108,-811.75,0.00046849,30]
[314480007,1708375887118,-565.99,0.00046849,30]
[314480008,1708375887151,-1432.15,0.00046849,30]
[314480009,1708375887160,-694.07,0.00046849,30]
[314480010,1708375887171,-500.0,0.00046849,30]
[314480011,1708375887181,-500.0,0.00046849,30]
[314480012,1708375887190,-341.071312,0.00046849,14]
[314480013,1708375887200,-519.69783101,0.00046849,30]
[314480014,1708375887209,-341.071312,0.00046849,14]
[314480015,1708375887218,-500.0,0.00046849,30]
[314480016,1708375887227,-500.0,0.00046849,30]
[314480017,1708375887236,-1105.31,0.00046849,30]
[314480018,1708375887245,-500.0,0.00046849,30]
[314480019,1708375887255,-500.0,0.00046849,30]
[314480020,1708375887265,-151.0,0.00046849,14]
[314480021,1708375887274,-151.0,0.00046849,14]
[314480022,1708375887283,-500.0,0.00046849,30]
[314480023,1708375887293,-724.85,0.00046849,30]
[314480024,1708375887302,-151.0,0.00046849,14]
[314480025,1708375887311,-151.0,0.00046849,14]
[314480026,1708375887320,-500.0,0.00046849,30]
[314480027,1708375887329,-392.87084402,0.00046849,30]
[314480028,1708375887338,-500.0,0.00046849,30]
[314480029,1708375887348,-570.64771729,0.00046849,30]
[314480030,1708375887357,-500.0,0.00046849,30]
[314480031,1708375887367,-500.0,0.00046849,30]
[314480032,1708375887376,-500.0,0.00046849,30]
[314480033,1708375887386,-151.0,0.00046849,2]
[314480034,1708375887395,-151.0,0.00046849,2]
[314480035,1708375887405,-1212.7,0.00046849,30]
[314480036,1708375887414,-892.85,0.00046849,30]
[314480037,1708375887423,-500.0,0.00046849,30]
[314480038,1708375887433,-500.0,0.00046849,30]
[314480039,1708375887442,-500.0,0.00046849,30]
[314480040,1708375887451,-869.25,0.00046849,30]
[314480041,1708375887461,-500.0,0.00046849,30]
[314480042,1708375887470,-500.0,0.00046849,30]
[314480043,1708375887479,-500.0,0.00046849,30]
[314480044,1708375887489,-500.0,0.00046849,30]
[314480045,1708375887498,-500.0,0.00046849,30]
[314480046,1708375887507,-500.0,0.00046849,30]
[314480047,1708375887518,-500.0,0.00046849,30]
[314480048,1708375887527,-500.0,0.00046849,30]
[314480049,1708375887537,-500.0,0.00046849,30]
[314480050,1708375887546,-810.5,0.00046849,30]
[314480051,1708375887556,-500.0,0.00046849,30]
[314480052,1708375887565,-567.89,0.00046849,30]
[314480053,1708375887574,-500.0,0.00046849,30]
[314480054,1708375887583,-500.0,0.00046849,30]
[314480055,1708375887593,-500.0,0.00046849,30]
[314480056,1708375887602,-500.0,0.00046849,30]
[314480057,1708375887611,-1168.13,0.00046849,30]
[314480058,1708375887621,-1054.03,0.00046849,30]
[314480059,1708375887631,-500.0,0.00046849,30]
[314480060,1708375887640,-500.0,0.00046849,2]
[314480061,1708375887650,-500.0,0.00046849,30]
[314480062,1708375887659,-500.0,0.00046849,30]
[314480063,1708375887669,-500.0,0.00046849,30]
[314480064,1708375887679,-500.0,0.00046849,30]
[314480065,1708375887688,-500.0,0.00046849,30]
[314480066,1708375887698,-500.0,0.00046849,30]
[314480067,1708375887707,-500.0,0.00046849,30]
[314480068,1708375887717,-822.31,0.00046849,30]
[314480069,1708375887727,-500.0,0.00046849,30]
[314480070,1708375887737,-1261.76,0.00046849,30]
[314480071,1708375887747,-500.0,0.00046849,30]
[314480072,1708375887757,-500.0,0.00046849,30]
[314480073,1708375887775,-500.0,0.00046849,30]
[314480074,1708375887795,-500.0,0.00046849,30]
[314480075,1708375887816,-743.59,0.00046849,30]
[314480076,1708375887837,-929.31,0.00046849,30]
[314480077,1708375887858,-500.0,0.00046849,30]
[314480078,1708375887879,-500.0,0.00046849,30]
[314480079,1708375887901,-500.0,0.00046849,30]
[314480080,1708375887922,-500.0,0.00046849,30]
[314480081,1708375887943,-500.0,0.00046849,30]
[314480082,1708375887963,-500.0,0.00046849,30]
[314480083,1708375887972,-516.11,0.00046849,30]
[314480084,1708375887982,-500.0,0.00046849,30]
[314480085,1708375887991,-1169.76,0.00046849,30]
[314480086,1708375888001,-655.79,0.00046849,30]
[314480087,1708375888011,-500.0,0.00046849,30]
[314480088,1708375888020,-500.0,0.00046849,30]
[314480089,1708375888030,-1155.7,0.00046849,30]
[314480090,1708375888040,-500.0,0.00046849,30]
[314480091,1708375888050,-500.0,0.00046849,30]
[314480092,1708375888062,-1079.22,0.00046849,30]
[314480093,1708375888080,-500.0,0.00046849,30]
[314480094,1708375888089,-531.84,0.00046849,30]
[314480095,1708375888098,-500.0,0.00046849,30]
[314480096,1708375888108,-1189.04,0.00046849,30]
[314480097,1708375888118,-817.13,0.00046849,30]
[314480098,1708375888127,-500.0,0.00046849,30]
[314480099,1708375888137,-500.0,0.00046849,30]
[314480100,1708375888146,-500.0,0.00046849,30]
[314480101,1708375888156,-500.0,0.00046849,30]
[314480102,1708375888165,-500.0,0.00046849,30]
[314480103,1708375888175,-500.0,0.00046849,30]
[314480104,1708375888185,-500.0,0.00046849,30]
[314480105,1708375888194,-500.0,0.00046849,30]
[314480106,1708375888203,-500.0,0.00046849,30]
[314480107,1708375888213,-954.22,0.00046849,30]
[314480108,1708375888222,-500.0,0.00046849,30]
[314480109,1708375888232,-500.0,0.00046849,30]
[314480110,1708375888242,-1014.4,0.00046849,30]
[314480111,1708375888251,-500.0,0.00046849,30]
[314480112,1708375888261,-500.0,0.00046849,30]
[314480113,1708375888271,-500.0,0.00046849,30]
[314480114,1708375888280,-1091.86,0.00046849,30]
[314480115,1708375888289,-500.0,0.00046849,30]
[314480116,1708375888298,-500.0,0.00046849,30]
[314480117,1708375888308,-10000.0,0.00046849,30]
[314480118,1708375888318,-500.0,0.00046849,30]
[314480119,1708375888327,-623.17,0.00046849,30]
[314480120,1708375888336,-500.0,0.00046849,30]
[314480121,1708375888345,-500.0,0.00046849,30]
[314480122,1708375888354,-500.0,0.00046849,30]
[314480123,1708375888364,-357.560604,0.00046849,14]
[314480124,1708375888373,-976.49,0.00046849,30]
[314480125,1708375888383,-357.560604,0.00046849,14]
[314480126,1708375888392,-500.0,0.00046849,30]
[314480127,1708375888402,-500.0,0.00046849,30]
[314480128,1708375888411,-980.87,0.00046849,30]
[314480129,1708375888421,-404.655716,0.00046849,14]
[314480130,1708375888431,-500.0,0.00046849,30]
[314480131,1708375888441,-404.655716,0.00046849,14]
[314480132,1708375888451,-408.7166495,0.00046849,30]
[314480133,1708375888460,-500.0,0.00046849,30]
[314480134,1708375888469,-500.0,0.00046849,30]
[314480135,1708375888479,-357.560604,0.00046849,14]
[314480136,1708375888489,-357.560604,0.00046849,14]
[314480137,1708375888498,-404.655716,0.00046849,14]
[314480138,1708375888508,-404.655716,0.00046849,14]
[314480139,1708375888517,-500.0,0.00046849,30]
[314480140,1708375888526,-500.0,0.00046849,30]
[314480141,1708375888536,-500.0,0.00046849,30]
[314480142,1708375888545,-500.0,0.00046849,30]
[314480143,1708375888555,-500.0,0.00046849,30]
[314480144,1708375888564,-500.0,0.00046849,30]
[314480145,1708375888573,-500.0,0.00046849,30]
[314480146,1708375888582,-500.0,0.00046849,30]
[314480147,1708375888592,-8677.61,0.00046849,30]
[314480148,1708375888601,-500.0,0.00046849,30]
[314480149,1708375888610,-500.0,0.00046849,30]
[314480150,1708375888620,-500.0,0.00046849,30]
[314480151,1708375888629,-1000.0,0.00046849,7]
[314480152,1708375888638,-500.0,0.00046849,30]
[314480153,1708375888648,-500.0,0.00046849,30]
[314480154,1708375888657,-893.6,0.00046849,30]
[314480155,1708375888667,-327.03618486,0.00046849,30]
[314480156,1708375888676,-500.0,0.00046849,30]
[314480157,1708375888686,-500.0,0.00046849,30]
[314480158,1708375888696,-500.0,0.00046849,30]
[314480159,1708375888705,-500.0,0.00046849,30]
[314480160,1708375888714,-500.0,0.00046849,30]
[314480161,1708375888723,-500.0,0.00046849,30]
[314480162,1708375888733,-500.0,0.00046849,30]
[314480163,1708375888742,-569.78570532,0.00046849,30]
[314480164,1708375888752,-641.69,0.00046849,30]
[314480165,1708375888761,-468.1291568,0.00046849,30]
[314480166,1708375888770,-500.0,0.00046849,30]
[314480167,1708375888780,-500.0,0.00046849,7]
[314480168,1708375888789,-500.0,0.00046849,30]
[314480169,1708375888798,-500.0,0.00046849,30]
[314480170,1708375888807,-500.0,0.00046849,30]
[314480171,1708375888816,-500.0,0.00046849,30]
[314480172,1708375888825,-500.0,0.00046849,30]
[314480173,1708375888835,-151.0,0.00046849,14]
[314480174,1708375888844,-500.0,0.00046849,30]
[314480175,1708375888853,-151.0,0.00046849,14]
[314480176,1708375888862,-398.02291,0.00046849,14]
[314480177,1708375888871,-500.0,0.00046849,30]
[314480178,1708375888881,-500.0,0.00046849,30]
[314480179,1708375888890,-537.00013361,0.00046849,30]
[314480180,1708375888900,-1098.68,0.00046849,30]
[314480181,1708375888909,-398.02291,0.00046849,14]
[314480182,1708375888918,-500.0,0.00046849,30]
[314480183,1708375888928,-500.0,0.00046849,30]
[314480184,1708375888937,-783.48,0.00046849,30]
[314480185,1708375888946,-151.0,0.00046849,14]
[314480186,1708375888956,-500.0,0.00046849,30]
[314480187,1708375888965,-242.382062,0.00046849,14]
[314480188,1708375888974,-500.0,0.00046849,30]
[314480189,1708375888984,-398.02291,0.00046849,14]
[314480190,1708375888993,-398.02291,0.00046849,14]
[314480191,1708375889002,-500.0,0.00046849,30]
[314480192,1708375889012,-500.0,0.00046849,30]
[314480193,1708375889022,-526.90079874,0.00046849,30]
[314480194,1708375889031,-500.0,0.00046849,30]
[314480195,1708375889041,-500.0,0.00046849,30]
[314480196,1708375889050,-500.0,0.00046849,30]
[314480197,1708375889060,-1291.14,0.00046849,30]
[314480198,1708375889073,-500.0,0.00046849,30]
[314480199,1708375889082,-1226.84,0.00046849,30]
[314480200,1708375889092,-500.0,0.00046849,30]
[314480201,1708375889101,-500.0,0.00046849,30]
[314480202,1708375889111,-500.0,0.00046849,30]
[314480203,1708375889120,-500.0,0.00046849,30]
[314480204,1708375889129,-764.49,0.00046849,30]
[314480205,1708375889138,-500.0,0.00046849,30]
[314480206,1708375889148,-500.0,0.00046849,30]
[314480207,1708375889160,-500.0,0.00046849,30]
[314480208,1708375889169,-625.5,0.00046849,30]
[314480209,1708375889178,-500.0,0.00046849,30]
[314480210,1708375889187,-500.0,0.00046849,30]
[314480211,1708375889196,-500.0,0.00046849,30]
[314480212,1708375889205,-871.41,0.00046849,30]
[314480213,1708375889214,-2287.569706,0.00046849,14]
[314480214,1708375889223,-500.0,0.00046849,30]
[314480215,1708375889231,-2287.569706,0.00046849,14]
[314480216,1708375889240,-937.75,0.00046849,30]
[314480217,1708375889251,-500.0,0.00046849,30]
[314480218,1708375889260,-500.0,0.00046849,30]
[314480219,1708375889270,-629.47,0.00046849,30]
[314480220,1708375889279,-2287.569706,0.00046849,14]
[314480221,1708375889288,-2287.569706,0.00046849,14]
[314480222,1708375889298,-500.0,0.00046849,30]
[314480223,1708375889307,-500.0,0.00046849,30]
[314480224,1708375889316,-500.0,0.00046849,30]
[314480225,1708375889325,-500.0,0.00046849,30]
[314480226,1708375889334,-500.0,0.00046849,30]
[314480227,1708375889343,-500.0,0.00046849,30]
[314480228,1708375889353,-2580.06,0.00046849,30]
[314480229,1708375889362,-500.0,0.00046849,30]
[314480230,1708375889371,-500.0,0.00046849,30]
[314480231,1708375889380,-500.0,0.00046849,30]
[314480232,1708375889389,-513.56167854,0.00046849,30]
[314480233,1708375889398,-874.69,0.00046849,30]
[314480234,1708375889408,-500.0,0.00046849,30]
[314480235,1708375889417,-580.6,0.00046849,30]
[314480236,1708375889427,-742.82,0.00046849,30]
[314480237,1708375889437,-1385.86,0.00046849,30]
[314480238,1708375889446,-626.34,0.00046849,30]
[314480239,1708375889456,-500.0,0.00046849,30]
[314480240,1708375889466,-1122.0,0.00046849,30]
[314480241,1708375889475,-500.0,0.00046849,30]
[314480242,1708375889485,-500.0,0.00046849,30]
[314480243,1708375889494,-500.0,0.00046849,30]
[314480244,1708375889504,-500.0,0.00046849,30]
[314480245,1708375889513,-500.0,0.00046849,30]
[314480246,1708375889523,-673.8,0.00046849,30]
[314480247,1708375889532,-948.86,0.00046849,30]
[314480248,1708375889542,-166.655087,0.00046849,14]
[314480249,1708375889551,-500.0,0.00046849,30]
[314480250,1708375889560,-166.655087,0.00046849,14]
[314480251,1708375889570,-500.0,0.00046849,30]
[314480252,1708375889579,-251.667956,0.00046849,14]
[314480253,1708375889588,-500.0,0.00046849,30]
[314480254,1708375889598,-500.0,0.00046849,30]
[314480255,1708375889608,-500.0,0.00046849,30]
[314480256,1708375889617,-500.0,0.00046849,30]
[314480257,1708375889626,-1101.95,0.00046849,30]
[314480258,1708375889636,-500.0,0.00046849,30]
[314480259,1708375889646,-166.655087,0.00046849,14]
[314480260,1708375889655,-166.655087,0.00046849,14]
[314480261,1708375889665,-500.0,0.00046849,30]
[314480262,1708375889674,-500.0,0.00046849,30]
[314480263,1708375889683,-500.0,0.00046849,30]
[314480264,1708375889693,-681.52,0.00046849,30]
[314480265,1708375889703,-500.0,0.00046849,30]
[314480266,1708375889712,-500.0,0.00046849,30]
[314480267,1708375889721,-1174.33,0.00046849,30]
[314480268,1708375889730,-500.0,0.00046849,30]
[314480269,1708375889739,-981.09,0.00046849,30]
[314480270,1708375889748,-500.0,0.00046849,30]
[314480271,1708375889757,-4511.29,0.00046849,30]
[314480272,1708375889767,-1043.21,0.00046849,30]
[314480273,1708375889776,-500.0,0.00046849,30]
[314480274,1708375889786,-2077.3,0.00046849,30]
[314480275,1708375889795,-500.0,0.00046849,30]
[314480276,1708375889804,-500.0,0.00046849,30]
[314480277,1708375889812,-500.0,0.00046849,30]
[314480278,1708375889821,-500.0,0.00046849,30]
[314480279,1708375890011,-500.0,0.00046849,30]
[314480280,1708375890022,-500.0,0.00046849,30]
[314480281,1708375890032,-250.0,0.00046849,30]
[314480282,1708375890040,-500.0,0.00046849,30]
[314480283,1708375890050,-207.089613,0.00046849,14]
[314480284,1708375890060,-888.3,0.00046849,30]
[314480285,1708375890071,-207.089613,0.00046849,14]
[314480286,1708375890083,-610.38,0.00046849,30]
[314480287,1708375890093,-500.0,0.00046849,30]
[314480288,1708375890102,-500.0,0.00046849,30]
[314480289,1708375890112,-500.0,0.00046849,30]
[314480290,1708375890122,-3093.94,0.00046849,30]
[314480291,1708375890132,-1342.73,0.00046849,30]
[314480292,1708375890142,-500.0,0.00046849,30]
[314480293,1708375890152,-500.0,0.00046849,30]
[314480294,1708375890162,-4450.76,0.00046849,30]
[314480295,1708375890172,-207.089613,0.00046849,14]
[314480296,1708375890181,-207.089613,0.00046849,14]
[314480297,1708375890190,-2986.67,0.00046849,30]
[314480298,1708375890200,-927.23,0.00046849,30]
[314480299,1708375890209,-500.0,0.00046849,30]
[314480300,1708375890218,-500.0,0.00046849,30]
[314480301,1708375890228,-500.0,0.00046849,30]
[314480302,1708375890237,-4576.97,0.00046849,30]
[314480303,1708375890245,-500.0,0.00046849,30]
[314480304,1708375890254,-1346.18,0.00046849,30]
[314480305,1708375890264,-500.0,0.00046849,30]
[314480306,1708375890273,-1701.809969,0.00046849,14]
[314480307,1708375890282,-2880.36,0.00046849,30]
[314480308,1708375890291,-1701.809969,0.00046849,14]
[314480309,1708375890300,-500.0,0.00046849,30]
[314480310,1708375890311,-500.0,0.00046849,30]
[314480311,1708375890320,-500.0,0.00046849,30]
[314480312,1708375890330,-1701.809969,0.00046849,14]
[314480313,1708375890339,-540.25,0.00046849,30]
[314480314,1708375890349,-942.11,0.00046849,30]
[314480315,1708375890358,-1701.809969,0.00046849,14]
[314480316,1708375890368,-500.0,0.00046849,30]
[314480317,1708375890377,-500.0,0.00046849,30]
[314480318,1708375890387,-500.0,0.00046849,30]
[314480319,1708375890397,-802.39,0.00046849,30]
[314480320,1708375890406,-500.0,0.00046849,30]
[314480321,1708375890416,-500.0,0.00046849,30]
[314480322,1708375890426,-151.0,0.00046849,14]
[314480323,1708375890435,-151.0,0.00046849,14]
[314480324,1708375890444,-3501.98,0.00046849,30]
[314480325,1708375890454,-500.0,0.00046849,30]
[314480326,1708375890463,-3067.49,0.00046849,30]
[314480327,1708375890473,-500.0,0.00046849,30]
[314480328,1708375890483,-500.0,0.00046849,30]
[314480329,1708375890493,-500.0,0.00046849,30]
[314480330,1708375890502,-752.55,0.00046849,30]
[314480331,1708375890512,-500.0,0.00046849,30]
[314480332,1708375890523,-500.0,0.00046849,30]
[314480333,1708375890533,-500.0,0.00046849,30]
[314480334,1708375890543,-500.0,0.00046849,30]
[314480335,1708375890552,-500.0,0.00046849,30]
[314480336,1708375890562,-983.46,0.00046849,30]
[314480337,1708375890572,-500.0,0.00046849,30]
[314480338,1708375890582,-2258.21,0.00046849,30]
[314480339,1708375890592,-500.0,0.00046849,30]
[314480340,1708375890601,-3285.56,0.00046849,30]
[314480341,1708375890611,-708.73,0.00046849,30]
[314480342,1708375890620,-500.0,0.00046849,30]
[314480343,1708375890629,-500.0,0.00046849,30]